Cogmind - Beta 13 @@@ ROGUE MODE // 2024.04.07 @ 20:39:10 Player: Olafz Result: Destroyed by G-34 Mercenary with Small Laser Performance ------------- Evolutions (0) 0 Regions Visited (2) 400 Robots Destroyed (8) 40 Value Destroyed (118) 118 Prototype IDs (2) 40 Alien Tech Used (0) 0 Bonus (0) 0 TOTAL SCORE: 598 Bonus ------- None Cogmind --------- Core Integrity 0/250 Matter 70/300 Energy 100/100 System Corruption 0% Temperature Cool (6) Movement Core (150) Ox2 Location -10/Mines Parts ------- > --- POWER (1) -------- (None) > --- PROPULSION (2) --- (None) > --- UTILITY (2) ------ Heat Sink Small Storage Unit > --- WEAPON (2) ------- Light Assault Rifle > --- INVENTORY (8) ---- Light Ion Engine Peak State ------------ > --- POWER ------------ Ion Engine > --- PROPULSION ------- Light Treads Light Treads > --- UTILITY ---------- Heat Sink Small Storage Unit > --- WEAPON ----------- Assault Rifle Light Assault Rifle > --- INVENTORY -------- Light Ion Engine [Rating: 7] Favorites ----------- Power Ion Engine Engine Ion Engine Propulsion Light Treads Treads Light Treads Utility Small Storage Unit Device Heat Sink Storage Small Storage Unit Weapon Assault Rifle Ballistic Gun Assault Rifle Build | -11 -10 -10 ------- Run | Yrd Mat Min Slots Evolved . | . . . Power . | . . . Propulsion . | . . . Utility . | . . . Weapon . | . . . Parts Attached 8 | 6 . 2 Power 2 | 2 . . Engine 2 | 2 . . Core . | . . . Reactor . | . . . Propulsion 2 | 2 . . Treads 2 | 2 . . Leg . | . . . Wheel . | . . . Hover . | . . . Flight . | . . . Utility 2 | 1 . 1 Device 1 | . . 1 Storage 1 | 1 . . Processor . | . . . Hackware . | . . . Protection . | . . . Artifact . | . . . Weapon 2 | 1 . 1 Energy Gun . | . . . Energy Cannon . | . . . Ballistic Gun 2 | 1 . 1 Ballistic Cannon . | . . . Launcher . | . . . Special Weapon . | . . . Impact Weapon . | . . . Slashing Weapon . | . . . Piercing Weapon . | . . . Special Melee Weapon . | . . . Unidentified Prototypes . | . . . Parts Lost 4 | . . 4 Power 1 | . . 1 Propulsion 2 | . . 2 Utility . | . . . Weapon 1 | . . 1 Highest Loss Streak 4 | . . 4 To Critical Strikes . | . . . Average Slot Usage (%) 82 | . 71 86 Engine 14 | . 14 14 Treads 26 | . 28 25 Device 5 | . . 7 Storage 14 | . 14 14 Ballistic Gun 21 | . 14 23 Naked Turns . | . . . Heaviest Build 14 | 12 12 14 Greatest Support 40 | 40 40 40 Greatest Overweight (x) 3 | . . 3 Average Overweight (x) . | . . . Largest Inventory Capacity 8 | 8 8 8 Average Capacity 7 | 7 8 8 Most Carried 1 | 1 1 1 Average Carried . | . 1 1 Final Capacity 8 | 8 8 8 Final Carried 1 | 1 1 1 Class Distribution -------------------- 100% | Mutant Dominant Class ---------------- Mutant | -10/Materials Mutant | -10/Mines Resources | -11 -10 -10 ----------- Run | Yrd Mat Min Matter Collected 143 | 73 . 70 Remotely . | . . . Salvage Created 212 | 35 . 177 Parts 22 | 6 . 16 Haulers Intercepted . | . . . Recyclers Shooed . | . . . Parts Field Recycled . | . . . Retrieved Matter . | . . . Parts Self-Destructed . | . . . Prevented . | . . . Kills | -11 -10 -10 ------- Run | Yrd Mat Min Combat Hostiles Destroyed 5 | . . 5 Guns 5 | . . 5 Classes Destroyed 4 | 1 . 3 Tunneler 2 | 2 . . Recycler 1 | . . 1 Swarmer 3 | . . 3 Grunt 2 | . . 2 Best Kill Streak 4 | 2 . 4 Combat Bots Only 3 | . . 3 Max Kills in Single Turn 1 | 1 . 1 Gunslinging . | . . . Exploded . | . . . Melee . | . . . Uniques/NPCs Destroyed . | . . . Combat | -11 -10 -10 -------- Run | Yrd Mat Min Hostile Shots Fired 95 | . 20 75 Missed 25 | . 4 21 Damage Taken 813 | . 125 688 Core 252 | . 41 211 Absorbed by Shields . | . . . Core Remaining (%) 100 | 100 . . Volleys Fired 34 | 4 6 24 Largest 2 | 1 1 2 Hottest 40 | 20 20 40 Shots Fired 45 | 4 6 35 Gun 45 | 4 6 35 Cannon . | . . . Launcher . | . . . Special . | . . . Kinetic 45 | 4 6 35 Thermal . | . . . Explosive . | . . . Electromagnetic . | . . . Robot Hit Streak 10 | 4 1 10 Robot Miss Streak 5 | . 3 5 Penetration Max . | . . . Secondary Targets 1 | . . 1 Max Gunslinging Chain 1 | . . 1 Shots Hit Robots 29 | 4 1 24 Core Hits 10 | 2 . 8 Critical Kills . | . . . Critical Parts Destroyed 1 | . 1 . Critical Strikes 1 | . 1 . Destroy 1 | . 1 . Melee Attacks . | . . . Impact . | . . . Slashing . | . . . Piercing . | . . . Sneak Attacks . | . . . Combat Hostiles . | . . . Follow-up Attacks . | . . . Damage Inflicted 324 | 53 15 256 Guns 324 | 53 15 256 Cannons . | . . . Explosions . | . . . Melee . | . . . Ramming . | . . . Kinetic 324 | 53 15 256 Thermal . | . . . Explosive . | . . . Electromagnetic . | . . . Impact . | . . . Slashing . | . . . Piercing . | . . . Highest Corruption . | . . . Average Corruption . | . . . Corruption Purged . | . . . Corruption Blocked . | . . . Overload Shots . | . . . Overflow Damage . | . . . Projectiles . | . . . Explosions . | . . . Melee . | . . . Knockbacks . | . . . Impact . | . . . Kinetic . | . . . Secondary . | . . . Self-Inflicted Damage . | . . . Shots . | . . . Rammed . | . . . Targets Rammed . | . . . Kicked . | . . . Crushed . | . . . Highest Temperature 12 | . . 12 Average Temperature 7 | . . 7 Received Heat Transfer 246 | . . 246 Siege Activations . | . . . Robots Corrupted . | . . . Combat Hostiles . | . . . Parts Fried . | . . . Impact Corruptions . | . . . Robots Melted . | . . . Combat Hostiles . | . . . Parts Melted . | . . . Heat Transferred . | . . . Parts Sabotaged . | . . . Parts Stolen . | . . . Parts Stripped . | . . . Power Chain Reactions . | . . . Alert | -11 -10 -10 ------- Run | Yrd Mat Min Peak Influence 146 | 10 43 146 Initial 16 | . 6 16 Average 60 | 2 18 99 Maximum Alert Level . | . . . Low Security (%) 100 | 100 100 100 Level 1 . | . . . Level 2 . | . . . Level 3 . | . . . Level 4 . | . . . Level 5 . | . . . High Security . | . . . Max Security . | . . . Squads Dispatched 2 | . 1 1 Investigation 1 | . . 1 Extermination . | . . . Reinforcement 1 | . 1 . Assault . | . . . Garrison . | . . . Intercept . | . . . Searches Triggered . | . . . Construction Impeded . | . . . Haulers Reinforced . | . . . Active Scanning Responses . | . . . Cargo Convoy Interrupts . | . . . Stealth | -11 -10 -10 --------- Run | Yrd Mat Min Distress Signals 1 | . 1 . Communications Jammed . | . . . Distress Signals . | . . . Times Spotted 14 | . 4 10 Peak Tracking Total 5 | . 5 5 Tactical Retreats 1 | . 1 . Traps | -11 -10 -10 ------- Run | Yrd Mat Min Traps Triggered . | . . . Indirectly . | . . . Trap Hack Attempts . | . . . Triggered . | . . . Disarmed . | . . . Reprogrammed . | . . . Reused . | . . . Traps Extracted . | . . . Installed . | . . . Triggered . | . . . Machines | -11 -10 -10 ---------- Run | Yrd Mat Min Machines Disabled . | . . . Max in Single Turn . | . . . Machines Repaired . | . . . Machines Dismantled . | . . . Machines Sabotaged . | . . . Overloaded Fab Kills . | . . . Hacking | -11 -10 -10 --------- Run | Yrd Mat Min Machines Accessed 3 | . 1 2 Terminals 3 | . 1 2 Fabricators . | . . . Repair Stations . | . . . Recycling Units . | . . . Scanalyzers . | . . . Garrison Access . | . . . Total Hacks 9 | . 5 4 Successful 2 | . 2 . Failed 7 | . 3 4 Catastrophic 2 | . . 2 Database Lockouts . | . . . Manual 2 | . . 2 Terminals 9 | . 5 4 Fabricators . | . . . Repair Stations . | . . . Recycling Units . | . . . Scanalyzers . | . . . Garrison Access . | . . . Terminal Hacks 2 | . 2 . Prototype ID Bank 1 | . 1 . Branch Access Points 1 | . 1 . Fabricator Hacks . | . . . Repair Station Hacks . | . . . Recycling Unit Hacks . | . . . Scanalyzer . | . . . Garrison Access Hacks . | . . . Unauthorized Hacks . | . . . Terminals . | . . . Fabricators . | . . . Repair Stations . | . . . Recycling Units . | . . . Scanalyzers . | . . . Garrison Access . | . . . Data Cores Recovered . | . . . Used . | . . . Hacking Detections 3 | . 1 2 Full Trace Events 2 | . . 2 Feedback Events . | . . . Feedback Blocked . | . . . Robot Schematics Acquired . | . . . Robots Built . | . . . Authchips . | . . . Time . | . . . Total Robot Build Rating . | . . . Part Schematics Acquired . | . . . Parts Built . | . . . Authchips . | . . . Time . | . . . Total Part Build Rating . | . . . Parts Repaired . | . . . Time . | . . . Parts Recycled . | . . . Recycled Matter . | . . . Retrieved Matter . | . . . Retrieved Components . | . . . Parts Scanalyzed . | . . . Part Schematics Acquired . | . . . Parts Damaged . | . . . Bothacking | -11 -10 -10 ------------ Run | Yrd Mat Min Used RIF Installer . | . . . Robots Hacked . | . . . Non-combat . | . . . Combat . | . . . Robot Hacks Applied . | . . . Relay Couplers Released . | . . . Fabnet Peak Effective % . | . . . Robots Rewired . | . . . Allies Hacked . | . . . Hacks Repelled . | . . . Allies | -11 -10 -10 -------- Run | Yrd Mat Min Total Allies . | . . . Largest Group . | . . . Highest-Rated Group . | . . . Highest-Rated Ally . | . . . Total Orders . | . . . Ally Attacks . | . . . Total Damage . | . . . Kills . | . . . Allies Corrupted . | . . . Allies Melted . | . . . Intel | -11 -10 -10 ------- Run | Yrd Mat Min Robot Analysis Total . | . . . Derelict Logs Recovered 1 | . . 1 Drone Launches . | . . . Drone Recoveries . | . . . Exploration | -11 -10 -10 ------------- Run | Yrd Mat Min Turns Passed 343 | 86 60 197 Spaces Moved 163 | 47 31 85 Core 8 | 5 . 3 Treads 155 | 42 31 82 Legs . | . . . Wheels . | . . . Hover . | . . . Flight . | . . . Fastest Speed 50 | 50 160 150 Average Speed 157 | 148 160 160 Slowest Speed 200 | 160 160 200 Overloaded Moves . | . . . Propulsion Burnouts . | . . . Robots Hopped . | . . . Cave-ins Triggered . | . . . Exploration Rate (%) 15 | 3 19 24 Regions Visited 2 Branch Regions 1 Pre-discovered Areas . | . . . Known Exits Taken 1 | . 1 . Unknown Exits Taken 1 | 1 . . Scrap Searched . | . . . Spaces Dug . | . . . Terrain Destroyed . | . . . Melee . | . . . Projectile . | . . . AOE . | . . . Terrain Rammed . | . . . Walls Destroyed . | . . . Machines Disabled . | . . . Actions | -11 -10 -10 --------- Run | Yrd Mat Min Total 203 | 56 36 111 Wait . | . . . Move 161 | 46 30 85 Hop . | . . . Pick Up . | . . . Fast Attach 7 | 5 . 2 Attach . | . . . Detach . | . . . Swap 1 | 1 . . Drop . | . . . Fire 34 | 4 6 24 Melee . | . . . Ram . | . . . Kick . | . . . Crush . | . . . Escape Stasis . | . . . Rewire . | . . . Trap . | . . . Miscellaneous . | . . . Route ------- -11/Scrapyard -10/Materials (discovered 2 exits: *Min x2) -10/Mines (discovered 2 exits: [*Mat] / Sub) History --------- Turn | Location | Event 2 | -11/Scrapyard | Discovered new exit (range 16) 87 | -11/Scrapyard | Entered Materials 97 | -10/Materials | Identified exit to Mines 147 | -10/Materials | Entered Mines 160 | -10/Mines | Discovered new exit (range 9) 301 | -10/Mines | Build established: Mutant 306 | -10/Mines | Identified exit to Subcaves 314 | -10/Mines | Core integrity fell below 50% 341 | -10/Mines | Core integrity fell below 20% 344 | -10/Mines | Destroyed by G-34 Mercenary with Small Laser Last Messages --------------- Investigation squad. 00220_ R-06 Scavenger collects Tractor Beam. 00223_ R-06 Scavenger collects Flight Unit. 00227_ R-06 Scavenger collects Lgt. Ion Engine. 00230_ R-06 Scavenger collects Com. Wheel. 00234_ G-34 Mercenary destroyed. 00239_ Acquired 40 matter. 00242_ Acquired Heat Sink. 00261_ Connecting with Terminal... 00297_ K-01 Serf collects debris. 00306_ Acquired derelict log, extracted data. 00327_ Lgt. Treads destroyed. 00328_ G-34 Mercenary destroyed. 00328_ Switching to secondary target: Y-45 Defender. 00329_ K-01 Serf collects debris. 00337_ Assault Rifle destroyed. 00338_ Lgt. Treads destroyed. 00338_ K-01 Serf collects debris. 00341_ Ion Engine destroyed. 00341_ K-01 Serf collects debris. Map ----- +----------------------------------------------------+ | | | | | | | | | | | | | | | ?????????????????????????????????????????????????? | | ###??????????????????????????????????????????????? | | #??????????????????????????????????????????????? | | #????########??????????????????????????????????? | | #????# """ #??????????????????????????????????? | | ###### """ #??????????????????????????????????? | | """ ###########????????????????????????? | | " ###### #???????????>????????????? | | " #????# ######## #????????????????????????? | | " #????#T######??????# #????????????????????????? | | #????###?######????# #????????????????????????? | | ###???????##" "##???# #????????????????????????? | | ??????????#/! [!#???# #????????????????????????? | | ??????????#!] !!#???# #????????????????????????? | | ???????????# ###### #????????????????????????? | | ??????????###++### ## ##???????????????????????? | | ??????????# Y ######## ##???????????? | | ??????????# Y #???????????? | | ??? ## [ @ #???????????? | | ??? !%k ######## ????????????? | | ??## = g ##??????????????????????? | | ???## ### u #???????????????????????? | | ????## #??###### gg#???????????????????????? | | ?????# #????????## ??????????????????????? | | ?????# ??????????# ?????????????????????? | | ?????# ??????????? ## #????????????????????? | | ?????## ??????????? #? #????????????????????? | | ??????###??????????? #? #????????????????????? | | ??????????????????? #?? ????????????????????? | | ??????????????????? ##?? ???????????????????? | | ??????????????????# t ##???### ??????????????????? | | ??????????????????# ???????????????????????????? | | ???????????????????? ???????????????????????????? | | ????????????????????? ???????????????????????????? | | ?????????????????????????????????????????????????? | | ?????????????????????????????????????????????????? | | ?????????????????????????????????????????????????? | | ?????????????????????????????????????????????????? | | ?????????????????????????????????????????????????? | | ?????????????????????????????????????????????????? | | ?????????????????????????????????????????????????? | | ?????????????????????????????????????????????????? | | ?????????????????????????????????????????????????? | +----------------------------------------------------+ Best States ------------- Heat Dissipation 35 Energy Generation 10 Energy Capacity 250 Matter Stores 113 Matter Capacity 300 Sight Range 16 Terrain Scan Density 10 Evasion (%) 40 Recoil Reduction 2 Item Schematics ----------------- None Robot Schematics ------------------ None Fabricated ------------ Nothing Alien Tech Used ----------------- None Achievements -------------- None Challenges ------------ None Game ------ Seed AerolevAlertStabilizer Manual? 0 Play Time 00:04:57 Cumulative 29.5 hours Start 2024.04.07 @ 20:35:20 End 2024.04.07 @ 20:39:10 Sessions 1 Manual Loads 0 Difficulty Rogue Special Mode None Game No. 77 Rogue 75 Adventurer 2 Explorer 0 Win Type - Total 0 Types 0/0/0/0/0/0/0/0/0 Lore% 23 Gallery% 31 Achievement% 24 Wizard Run 0 Options --------- Layout 0 ASCII 0 Keyboard 1 Movement Numpad Keybinds 0 Fullscreen 2 Font 18/SmallcapsGlow Map View 76x50 Zoom Use 0% Tactical HUD 1 Map Filters NONE Filters NONE Steam 1 RUN: 3fb407e1-4559-43e7-a632-ff20eddba074